[Event "Titled Tuesday Blitz August 16 Late 2022"]
[White "Howell, David W L"]
[Black "Kambrath, Yannick"]
[WhiteFideId "410608"]
[BlackFideId "20632525"]
[WhiteElo "2559"]
[BlackElo "2236"]
[Result "1-0"]
[Round "11"]
[TimeControl "180+1"]
[Date "2022.08.16"]
[WhiteClock "0:00:03"]
[BlackClock "0:00:07"]

1. c4 {[%clk 0:02:47]}  e5 {[%clk 0:02:55]} 2. Nc3 {[%clk 0:02:45]}  Nc6 {[%clk 0:02:55]} 3. Nf3 {[%clk 0:02:32]}  Nf6 {[%clk 0:02:50]} 4. e3 {[%clk 0:02:24]}  Bb4 {[%clk 0:02:45]} 5. Qc2 {[%clk 0:02:23]}  d6 {[%clk 0:02:44]} 6. Ne2 {[%clk 0:02:21]}  a6 {[%clk 0:02:42]} 7. a3 {[%clk 0:02:15]}  Bc5 {[%clk 0:02:41]} 8. b4 {[%clk 0:02:15]}  Ba7 {[%clk 0:02:42]} 9. Bb2 {[%clk 0:02:16]}  O-O {[%clk 0:02:41]} 10. Ng3 {[%clk 0:02:12]}  Re8 {[%clk 0:02:38]} 11. Be2 {[%clk 0:02:04]}  Be6 {[%clk 0:02:36]} 12. O-O {[%clk 0:02:01]}  Qd7 {[%clk 0:02:35]} 13. Ng5 {[%clk 0:01:55]}  Bg4 {[%clk 0:02:15]} 14. f3 {[%clk 0:01:52]}  h6 {[%clk 0:02:11]} 15. fxg4 {[%clk 0:01:44]}  hxg5 {[%clk 0:02:11]} 16. Rxf6 {[%clk 0:01:44]}  gxf6 {[%clk 0:02:10]} 17. Rf1 {[%clk 0:01:43]}  Re6 {[%clk 0:02:03]} 18. Nh5 {[%clk 0:01:34]}  Qd8 {[%clk 0:01:30]} 19. Qf5 {[%clk 0:01:31]}  Qf8 {[%clk 0:01:27]} 20. Nxf6+ {[%clk 0:01:20]}  Rxf6 {[%clk 0:01:28]} 21. Qxf6 {[%clk 0:01:21]}  Qg7 {[%clk 0:01:28]} 22. Bd3 {[%clk 0:01:07]}  Qxf6 {[%clk 0:01:26]} 23. Rxf6 {[%clk 0:01:08]}  Kg7 {[%clk 0:01:27]} 24. Rf1 {[%clk 0:01:06]}  a5 {[%clk 0:01:22]} 25. b5 {[%clk 0:01:04]}  Nd8 {[%clk 0:01:06]} 26. Be4 {[%clk 0:00:59]}  Rc8 {[%clk 0:00:51]} 27. a4 {[%clk 0:00:50]}  f6 {[%clk 0:00:47]} 28. Bc3 {[%clk 0:00:46]}  Bb6 {[%clk 0:00:45]} 29. Bf5 {[%clk 0:00:42]}  Rb8 {[%clk 0:00:45]} 30. Kf2 {[%clk 0:00:41]}  Kf7 {[%clk 0:00:43]} 31. g3 {[%clk 0:00:26]}  Ne6 {[%clk 0:00:41]} 32. h4 {[%clk 0:00:25]}  Nc5 {[%clk 0:00:37]} 33. Bc2 {[%clk 0:00:24]}  Kg7 {[%clk 0:00:33]} 34. Ke2 {[%clk 0:00:20]}  Rh8 {[%clk 0:00:32]} 35. h5 {[%clk 0:00:17]}  Nd7 {[%clk 0:00:29]} 36. Bf5 {[%clk 0:00:16]}  Nc5 {[%clk 0:00:29]} 37. Bc2 {[%clk 0:00:16]}  Nd7 {[%clk 0:00:30]} 38. Kd1 {[%clk 0:00:16]}  Bc5 {[%clk 0:00:28]} 39. Kc1 {[%clk 0:00:16]}  Bb4 {[%clk 0:00:28]} 40. Bb2 {[%clk 0:00:15]}  b6 {[%clk 0:00:23]} 41. Rf2 {[%clk 0:00:14]}  Nc5 {[%clk 0:00:19]} 42. Kd1 {[%clk 0:00:14]}  Ne6 {[%clk 0:00:19]} 43. Ke2 {[%clk 0:00:14]}  Nd8 {[%clk 0:00:20]} 44. Kf3 {[%clk 0:00:14]}  Kf7 {[%clk 0:00:19]} 45. Bf5 {[%clk 0:00:13]}  Ne6 {[%clk 0:00:19]} 46. Bxe6+ {[%clk 0:00:13]}  Kxe6 {[%clk 0:00:19]} 47. Ke4 {[%clk 0:00:14]}  Rh7 {[%clk 0:00:19]} 48. Ba1 {[%clk 0:00:12]}  Rh8 {[%clk 0:00:19]} 49. d4 {[%clk 0:00:12]}  Rh7 {[%clk 0:00:19]} 50. Bb2 {[%clk 0:00:11]}  Rh8 {[%clk 0:00:18]} 51. Rh2 {[%clk 0:00:11]}  Rh6 {[%clk 0:00:18]} 52. Bc1 {[%clk 0:00:10]}  Bc3 {[%clk 0:00:18]} 53. Rc2 {[%clk 0:00:09]}  Bb4 {[%clk 0:00:18]} 54. Rf2 {[%clk 0:00:10]}  Rh7 {[%clk 0:00:18]} 55. Rf3 {[%clk 0:00:10]}  Rh6 {[%clk 0:00:18]} 56. Kd3 {[%clk 0:00:09]}  Rh7 {[%clk 0:00:18]} 57. Bb2 {[%clk 0:00:10]}  Rh6 {[%clk 0:00:18]} 58. Rf1 {[%clk 0:00:10]}  Rh7 {[%clk 0:00:19]} 59. Ke4 {[%clk 0:00:10]}  Rh6 {[%clk 0:00:18]} 60. Rc1 {[%clk 0:00:10]}  Rh7 {[%clk 0:00:18]} 61. Bc3 {[%clk 0:00:10]}  Bxc3 {[%clk 0:00:17]} 62. Rxc3 {[%clk 0:00:10]}  Rh6 {[%clk 0:00:16]} 63. Rc1 {[%clk 0:00:10]}  Rh7 {[%clk 0:00:16]} 64. Rf1 {[%clk 0:00:10]}  Rh8 {[%clk 0:00:14]} 65. Kd3 {[%clk 0:00:10]}  Rh7 {[%clk 0:00:15]} 66. Rf5 {[%clk 0:00:11]}  Rh8 {[%clk 0:00:15]} 67. Kc3 {[%clk 0:00:09]}  Rh7 {[%clk 0:00:15]} 68. Kd2 {[%clk 0:00:10]}  Rh8 {[%clk 0:00:15]} 69. Kd3 {[%clk 0:00:11]}  Rh7 {[%clk 0:00:16]} 70. Kc3 {[%clk 0:00:10]}  Rh6 {[%clk 0:00:16]} 71. c5 {[%clk 0:00:10]}  Rh7 {[%clk 0:00:15]} 72. Kc4 {[%clk 0:00:09]}  d5+ {[%clk 0:00:15]} 73. Kc3 {[%clk 0:00:09]}  e4 {[%clk 0:00:14]} 74. Rf1 {[%clk 0:00:07]}  Rh8 {[%clk 0:00:09]} 75. Kd2 {[%clk 0:00:08]}  Rh7 {[%clk 0:00:09]} 76. Rc1 {[%clk 0:00:08]}  f5 {[%clk 0:00:09]} 77. cxb6 {[%clk 0:00:07]}  cxb6 {[%clk 0:00:09]} 78. Rc6+ {[%clk 0:00:08]}  Kd7 {[%clk 0:00:09]} 79. Rxb6 {[%clk 0:00:07]}  Kc7 {[%clk 0:00:09]} 80. Rc6+ {[%clk 0:00:07]}  Kd7 {[%clk 0:00:10]} 81. Ra6 {[%clk 0:00:06]}  Kc8 {[%clk 0:00:10]} 82. h6 {[%clk 0:00:05]}  fxg4 {[%clk 0:00:08]} 83. Kc3 {[%clk 0:00:05]}  Rf7 {[%clk 0:00:08]} 84. Rxa5 {[%clk 0:00:03]}  Rf3 {[%clk 0:00:08]} 85. h7 {[%clk 0:00:03]}  Rxe3+ {[%clk 0:00:07]} 86. Kb4 {[%clk 0:00:03]} 1-0


[Site "https://www.chess.com"]

[Event "Titled Tuesday Blitz August 16 Late 2022"]
[White "Karaev, Seit-Amet"]
[Black "Csonka, Balazs"]
[WhiteFideId "4169549"]
[BlackFideId "742910"]
[WhiteElo "2272"]
[BlackElo "2404"]
[Result "1-0"]
[Round "11"]
[TimeControl "180+1"]
[Date "2022.08.16"]
[WhiteClock "0:00:08"]
[BlackClock "0:00:03"]

1. e4 {[%clk 0:02:57]}  c6 {[%clk 0:02:55]} 2. d4 {[%clk 0:02:47]}  d5 {[%clk 0:02:55]} 3. e5 {[%clk 0:02:45]}  c5 {[%clk 0:02:54]} 4. c3 {[%clk 0:02:44]}  Nc6 {[%clk 0:02:46]} 5. Nf3 {[%clk 0:02:37]}  cxd4 {[%clk 0:02:45]} 6. Nxd4 {[%clk 0:02:38]}  Nxe5 {[%clk 0:02:41]} 7. f4 {[%clk 0:02:38]}  Nc6 {[%clk 0:02:41]} 8. Bd3 {[%clk 0:02:38]}  g6 {[%clk 0:02:32]} 9. O-O {[%clk 0:02:35]}  Bg7 {[%clk 0:02:32]} 10. Be3 {[%clk 0:02:33]}  Nf6 {[%clk 0:02:31]} 11. f5 {[%clk 0:02:33]}  O-O {[%clk 0:02:18]} 12. Nd2 {[%clk 0:02:23]}  e5 {[%clk 0:01:35]} 13. Nxc6 {[%clk 0:02:19]}  bxc6 {[%clk 0:01:36]} 14. fxg6 {[%clk 0:02:20]}  hxg6 {[%clk 0:01:19]} 15. Kh1 {[%clk 0:02:16]}  Re8 {[%clk 0:00:57]} 16. Bg5 {[%clk 0:02:15]}  Qd6 {[%clk 0:00:52]} 17. Qe1 {[%clk 0:02:09]}  e4 {[%clk 0:00:46]} 18. Be2 {[%clk 0:02:08]}  Nh7 {[%clk 0:00:25]} 19. Be3 {[%clk 0:02:00]}  f5 {[%clk 0:00:23]} 20. Nb3 {[%clk 0:01:57]}  Be5 {[%clk 0:00:21]} 21. Qh4 {[%clk 0:01:52]}  Qf6 {[%clk 0:00:21]} 22. Qf2 {[%clk 0:01:40]}  Rf8 {[%clk 0:00:19]} 23. g3 {[%clk 0:01:39]}  Ng5 {[%clk 0:00:15]} 24. Bd4 {[%clk 0:01:38]}  Ne6 {[%clk 0:00:15]} 25. Rac1 {[%clk 0:01:34]}  Bd7 {[%clk 0:00:15]} 26. Ba6 {[%clk 0:01:24]}  g5 {[%clk 0:00:12]} 27. Bxe5 {[%clk 0:01:13]}  Qxe5 {[%clk 0:00:13]} 28. Nd4 {[%clk 0:01:14]}  Nxd4 {[%clk 0:00:11]} 29. cxd4 {[%clk 0:01:15]}  Qf6 {[%clk 0:00:08]} 30. Be2 {[%clk 0:01:08]}  Rae8 {[%clk 0:00:08]} 31. Rc3 {[%clk 0:01:00]}  Re7 {[%clk 0:00:09]} 32. Qg1 {[%clk 0:00:54]}  Rg7 {[%clk 0:00:08]} 33. b4 {[%clk 0:00:46]}  f4 {[%clk 0:00:08]} 34. b5 {[%clk 0:00:44]}  cxb5 {[%clk 0:00:06]} 35. Rc5 {[%clk 0:00:43]}  f3 {[%clk 0:00:05]} 36. Bxb5 {[%clk 0:00:43]}  Bxb5 {[%clk 0:00:06]} 37. Rxb5 {[%clk 0:00:44]}  Rh7 {[%clk 0:00:05]} 38. Rxd5 {[%clk 0:00:43]}  g4 {[%clk 0:00:05]} 39. Re5 {[%clk 0:00:39]}  Qg6 {[%clk 0:00:03]} 40. Qe3 {[%clk 0:00:36]}  Qh6 {[%clk 0:00:02]} 41. Qxh6 {[%clk 0:00:29]}  Rxh6 {[%clk 0:00:03]} 42. Rxe4 {[%clk 0:00:29]}  Rg6 {[%clk 0:00:04]} 43. h3 {[%clk 0:00:25]}  gxh3 {[%clk 0:00:04]} 44. Kh2 {[%clk 0:00:26]}  Kg7 {[%clk 0:00:04]} 45. Kxh3 {[%clk 0:00:23]}  Rh8+ {[%clk 0:00:04]} 46. Rh4 {[%clk 0:00:24]}  Rd8 {[%clk 0:00:05]} 47. Rxf3 {[%clk 0:00:23]}  Rdd6 {[%clk 0:00:03]} 48. Rhf4 {[%clk 0:00:19]}  Rh6+ {[%clk 0:00:03]} 49. Kg2 {[%clk 0:00:18]}  Rhe6 {[%clk 0:00:04]} 50. Rf7+ {[%clk 0:00:18]}  Kg6 {[%clk 0:00:04]} 51. Rxa7 {[%clk 0:00:18]}  Rxd4 {[%clk 0:00:04]} 52. Raa3 {[%clk 0:00:17]}  Rd2+ {[%clk 0:00:04]} 53. Rf2 {[%clk 0:00:18]}  Rd4 {[%clk 0:00:04]} 54. Raf3 {[%clk 0:00:18]}  Ra4 {[%clk 0:00:04]} 55. a3 {[%clk 0:00:19]}  Rea6 {[%clk 0:00:05]} 56. Ra2 {[%clk 0:00:18]}  Kg5 {[%clk 0:00:05]} 57. Kh3 {[%clk 0:00:18]}  Rh6+ {[%clk 0:00:04]} 58. Kg2 {[%clk 0:00:18]}  Rha6 {[%clk 0:00:05]} 59. Rb3 {[%clk 0:00:18]}  Kg4 {[%clk 0:00:05]} 60. Rc3 {[%clk 0:00:13]}  Kg5 {[%clk 0:00:05]} 61. Rf3 {[%clk 0:00:12]}  Kg4 {[%clk 0:00:05]} 62. Re3 {[%clk 0:00:12]}  Kg5 {[%clk 0:00:05]} 63. Kf3 {[%clk 0:00:13]}  Ra8 {[%clk 0:00:05]} 64. Rc3 {[%clk 0:00:09]}  R8a5 {[%clk 0:00:04]} 65. Ke3 {[%clk 0:00:09]}  Kg4 {[%clk 0:00:04]} 66. Kd2 {[%clk 0:00:10]}  Rd5+ {[%clk 0:00:03]} 67. Kc2 {[%clk 0:00:10]}  Rda5 {[%clk 0:00:04]} 68. Kb3 {[%clk 0:00:10]}  Ra8 {[%clk 0:00:02]} 69. Rc4+ {[%clk 0:00:10]}  Rxc4 {[%clk 0:00:02]} 70. Kxc4 {[%clk 0:00:11]}  Kxg3 {[%clk 0:00:03]} 71. a4 {[%clk 0:00:11]}  Kf4 {[%clk 0:00:03]} 72. Kc5 {[%clk 0:00:11]}  Ke5 {[%clk 0:00:03]} 73. a5 {[%clk 0:00:09]}  Rc8+ {[%clk 0:00:03]} 74. Kb6 {[%clk 0:00:09]}  Kd6 {[%clk 0:00:03]} 75. Rd2+ {[%clk 0:00:08]}  Ke7 {[%clk 0:00:04]} 76. a6 {[%clk 0:00:08]}  Rb8+ {[%clk 0:00:04]} 77. Kc7 {[%clk 0:00:08]}  Rb1 {[%clk 0:00:03]} 78. Re2+ {[%clk 0:00:08]}  Kf6 {[%clk 0:00:03]} 79. Ra2 {[%clk 0:00:09]}  Rc1+ {[%clk 0:00:02]} 80. Kd6 {[%clk 0:00:09]}  Rd1+ {[%clk 0:00:03]} 81. Kc5 {[%clk 0:00:08]}  Rc1+ {[%clk 0:00:03]} 82. Kb4 {[%clk 0:00:09]}  Rb1+ {[%clk 0:00:04]} 83. Ka5 {[%clk 0:00:07]}  Rb8 {[%clk 0:00:02]} 84. a7 {[%clk 0:00:07]}  Ra8 {[%clk 0:00:03]} 85. Kb6 {[%clk 0:00:08]} 1-0


[Site "https://www.chess.com"]

[Event "Titled Tuesday Blitz August 16 Late 2022"]
[White "Koepke, Christian"]
[Black "Kim, Sergey"]
[WhiteFideId "4655737"]
[BlackFideId "13700570"]
[WhiteElo "2188"]
[BlackElo "2601"]
[Result "0-1"]
[Round "11"]
[TimeControl "180+1"]
[Date "2022.08.16"]
[WhiteClock "0:00:03"]
[BlackClock "0:00:06"]

1. e4 {[%clk 0:02:57]}  e5 {[%clk 0:02:58]} 2. Nc3 {[%clk 0:02:56]}  Nf6 {[%clk 0:02:58]} 3. d4 {[%clk 0:02:56]}  exd4 {[%clk 0:02:57]} 4. Qxd4 {[%clk 0:02:57]}  Nc6 {[%clk 0:02:56]} 5. Qd3 {[%clk 0:02:57]}  Bb4 {[%clk 0:02:55]} 6. Bd2 {[%clk 0:02:42]}  O-O {[%clk 0:02:54]} 7. O-O-O {[%clk 0:02:42]}  Re8 {[%clk 0:02:47]} 8. Nge2 {[%clk 0:02:42]}  d6 {[%clk 0:02:36]} 9. Bg5 {[%clk 0:02:41]}  h6 {[%clk 0:02:29]} 10. Bxf6 {[%clk 0:02:38]}  Qxf6 {[%clk 0:02:28]} 11. Nd5 {[%clk 0:02:38]}  Qd8 {[%clk 0:02:23]} 12. Nxb4 {[%clk 0:02:29]}  Nxb4 {[%clk 0:02:22]} 13. Qd2 {[%clk 0:02:30]}  a5 {[%clk 0:02:18]} 14. Nc3 {[%clk 0:02:24]}  Be6 {[%clk 0:02:10]} 15. a3 {[%clk 0:02:20]}  Nc6 {[%clk 0:01:58]} 16. f4 {[%clk 0:02:18]}  Bd7 {[%clk 0:01:49]} 17. Rg1 {[%clk 0:02:11]}  Qh4 {[%clk 0:01:31]} 18. g3 {[%clk 0:02:08]}  Qh5 {[%clk 0:01:29]} 19. Nd5 {[%clk 0:01:18]}  Rac8 {[%clk 0:01:20]} 20. Be2 {[%clk 0:01:08]}  Bg4 {[%clk 0:01:19]} 21. Bxg4 {[%clk 0:01:02]}  Qxg4 {[%clk 0:01:19]} 22. Rde1 {[%clk 0:01:01]}  b6 {[%clk 0:01:04]} 23. Qg2 {[%clk 0:01:00]}  Ne7 {[%clk 0:00:59]} 24. h3 {[%clk 0:00:56]}  Qe6 {[%clk 0:00:56]} 25. f5 {[%clk 0:00:52]}  Qe5 {[%clk 0:00:56]} 26. Nxe7+ {[%clk 0:00:46]}  Rxe7 {[%clk 0:00:55]} 27. g4 {[%clk 0:00:43]}  Rce8 {[%clk 0:00:51]} 28. g5 {[%clk 0:00:38]}  Qf4+ {[%clk 0:00:50]} 29. Kb1 {[%clk 0:00:38]}  Qxg5 {[%clk 0:00:45]} 30. Qf3 {[%clk 0:00:37]}  Qf6 {[%clk 0:00:45]} 31. Rg4 {[%clk 0:00:34]}  Kh8 {[%clk 0:00:41]} 32. Reg1 {[%clk 0:00:34]}  Rg8 {[%clk 0:00:41]} 33. h4 {[%clk 0:00:30]}  c6 {[%clk 0:00:39]} 34. h5 {[%clk 0:00:30]}  Re5 {[%clk 0:00:38]} 35. Qf4 {[%clk 0:00:26]}  Rb5 {[%clk 0:00:33]} 36. Qc1 {[%clk 0:00:17]}  Re5 {[%clk 0:00:27]} 37. Rd1 {[%clk 0:00:16]}  d5 {[%clk 0:00:26]} 38. exd5 {[%clk 0:00:16]}  cxd5 {[%clk 0:00:26]} 39. Rgd4 {[%clk 0:00:16]}  Qxf5 {[%clk 0:00:24]} 40. Qd2 {[%clk 0:00:12]}  Qxh5 {[%clk 0:00:24]} 41. Qg2 {[%clk 0:00:09]}  Rd8 {[%clk 0:00:20]} 42. Rh1 {[%clk 0:00:09]}  Qg5 {[%clk 0:00:20]} 43. Rg4 {[%clk 0:00:09]}  Qf6 {[%clk 0:00:18]} 44. Qh2 {[%clk 0:00:08]}  Rg5 {[%clk 0:00:16]} 45. Rf4 {[%clk 0:00:07]}  Qg6 {[%clk 0:00:15]} 46. Qf2 {[%clk 0:00:05]}  Kg8 {[%clk 0:00:13]} 47. Rf1 {[%clk 0:00:05]}  Rf8 {[%clk 0:00:13]} 48. Qd4 {[%clk 0:00:04]}  Rg2 {[%clk 0:00:12]} 49. R1f2 {[%clk 0:00:04]}  Rxf2 {[%clk 0:00:12]} 50. Rxf2 {[%clk 0:00:04]}  Qe6 {[%clk 0:00:12]} 51. Rd2 {[%clk 0:00:03]}  Rd8 {[%clk 0:00:11]} 52. Rg2 {[%clk 0:00:03]}  g6 {[%clk 0:00:11]} 53. Qd2 {[%clk 0:00:03]}  Kh7 {[%clk 0:00:10]} 54. Rh2 {[%clk 0:00:03]}  h5 {[%clk 0:00:11]} 55. Qd3 {[%clk 0:00:03]}  Qe4 {[%clk 0:00:10]} 56. Qf1 {[%clk 0:00:03]}  Qe6 {[%clk 0:00:09]} 57. Rf2 {[%clk 0:00:03]}  Kg7 {[%clk 0:00:09]} 58. Qb5 {[%clk 0:00:03]}  d4 {[%clk 0:00:08]} 59. Qa4 {[%clk 0:00:03]}  Rd5 {[%clk 0:00:07]} 60. Ka2 {[%clk 0:00:03]}  Rf5+ {[%clk 0:00:06]} 61. Qb3 {[%clk 0:00:03]}  Qxb3+ {[%clk 0:00:06]} 62. Kxb3 {[%clk 0:00:03]}  Rxf2 {[%clk 0:00:06]} 0-1


[Site "https://www.chess.com"]

[Event "Titled Tuesday Blitz August 16 Late 2022"]
[White "Kovacevic, Radmila"]
[Black "Remolar Gallen, Jose"]
[WhiteFideId "933171"]
[BlackFideId "2215187"]
[WhiteElo "2157"]
[BlackElo "2205"]
[Result "0-1"]
[Round "11"]
[TimeControl "180+1"]
[Date "2022.08.18"]
[WhiteClock "0:00:00"]
[BlackClock "0:00:00"]

1. d4 {[%clk 0:00:00]}  Nf6 {[%clk 0:00:00]} 2. Nf3 {[%clk 0:00:00]}  g6 {[%clk 0:00:00]} 3. b3 {[%clk 0:00:00]}  Bg7 {[%clk 0:00:00]} 4. Bb2 {[%clk 0:00:00]}  O-O {[%clk 0:00:00]} 5. Nbd2 {[%clk 0:00:00]}  d5 {[%clk 0:00:00]} 6. g3 {[%clk 0:00:00]}  Bf5 {[%clk 0:00:00]} 7. Bg2 {[%clk 0:00:00]}  Ne4 {[%clk 0:00:00]} 8. Nh4 {[%clk 0:00:00]}  c5 {[%clk 0:00:00]} 9. Nxf5 {[%clk 0:00:00]}  gxf5 {[%clk 0:00:00]} 10. e3 {[%clk 0:00:00]}  Nc6 {[%clk 0:00:00]} 11. c3 {[%clk 0:00:00]}  cxd4 {[%clk 0:00:00]} 12. exd4 {[%clk 0:00:00]}  e6 {[%clk 0:00:00]} 13. O-O {[%clk 0:00:00]}  Rc8 {[%clk 0:00:00]} 14. Nxe4 {[%clk 0:00:00]}  fxe4 {[%clk 0:00:00]} 15. f4 {[%clk 0:00:00]}  f5 {[%clk 0:00:00]} 16. Qe2 {[%clk 0:00:00]}  Nb8 {[%clk 0:00:00]} 17. Rfd1 {[%clk 0:00:00]}  Nd7 {[%clk 0:00:00]} 18. Kh1 {[%clk 0:00:00]}  Nf6 {[%clk 0:00:00]} 19. h3 {[%clk 0:00:00]}  Qe8 {[%clk 0:00:00]} 20. Kh2 {[%clk 0:00:00]}  Qg6 {[%clk 0:00:00]} 21. Qe3 {[%clk 0:00:00]}  Qh6 {[%clk 0:00:00]} 22. Kg1 {[%clk 0:00:00]}  Kh8 {[%clk 0:00:00]} 23. Kf2 {[%clk 0:00:00]}  Rg8 {[%clk 0:00:00]} 24. Rg1 {[%clk 0:00:00]}  Bf8 {[%clk 0:00:00]} 25. Rad1 {[%clk 0:00:00]}  Bd6 {[%clk 0:00:00]} 26. Bf1 {[%clk 0:00:00]}  Nh5 {[%clk 0:00:00]} 27. Bc1 {[%clk 0:00:00]}  Rc7 {[%clk 0:00:00]} 28. Be2 {[%clk 0:00:00]}  Nf6 {[%clk 0:00:00]} 29. Bf1 {[%clk 0:00:00]}  Rcg7 {[%clk 0:00:00]} 30. Bd2 {[%clk 0:00:00]}  Nh5 {[%clk 0:00:00]} 31. g4 {[%clk 0:00:00]}  Bxf4 {[%clk 0:00:00]} 32. Qe2 {[%clk 0:00:00]}  fxg4 {[%clk 0:00:00]} 33. hxg4 {[%clk 0:00:00]}  Rf7 {[%clk 0:00:00]} 34. Ke1 {[%clk 0:00:00]}  Bxd2+ {[%clk 0:00:00]} 35. Qxd2 {[%clk 0:00:00]}  e3 {[%clk 0:00:00]} 36. Qg2 {[%clk 0:00:00]}  Rf2 {[%clk 0:00:00]} 37. Qh3 {[%clk 0:00:00]}  Qg6 {[%clk 0:00:00]} 0-1


[Site "https://www.chess.com"]

[Event "Titled Tuesday Blitz August 16 Late 2022"]
[White "Leitao, Rafael"]
[Black "Jorajuria Mendoza, Algol"]
[WhiteFideId "2101246"]
[BlackFideId "5128897"]
[WhiteElo "2609"]
[BlackElo "1600"]
[Result "1-0"]
[Round "11"]
[TimeControl "180+1"]
[Date "2022.08.18"]
[WhiteClock "0:00:00"]
[BlackClock "0:00:00"]

1. c4 {[%clk 0:00:00]}  e5 {[%clk 0:00:00]} 2. Nc3 {[%clk 0:00:00]}  Nc6 {[%clk 0:00:00]} 3. Nf3 {[%clk 0:00:00]}  Bb4 {[%clk 0:00:00]} 4. d3 {[%clk 0:00:00]}  Nf6 {[%clk 0:00:00]} 5. Bd2 {[%clk 0:00:00]}  O-O {[%clk 0:00:00]} 6. g3 {[%clk 0:00:00]}  d5 {[%clk 0:00:00]} 7. cxd5 {[%clk 0:00:00]}  Nxd5 {[%clk 0:00:00]} 8. Bg2 {[%clk 0:00:00]}  Be6 {[%clk 0:00:00]} 9. O-O {[%clk 0:00:00]}  Qd7 {[%clk 0:00:00]} 10. Rc1 {[%clk 0:00:00]}  Rad8 {[%clk 0:00:00]} 11. Nxd5 {[%clk 0:00:00]}  Bxd2 {[%clk 0:00:00]} 12. Nf6+ {[%clk 0:00:00]}  gxf6 {[%clk 0:00:00]} 13. Nxd2 {[%clk 0:00:00]}  Bd5 {[%clk 0:00:00]} 14. Bxd5 {[%clk 0:00:00]}  Qxd5 {[%clk 0:00:00]} 15. Ne4 {[%clk 0:00:00]}  Kg7 {[%clk 0:00:00]} 16. Rc5 {[%clk 0:00:00]}  Qxa2 {[%clk 0:00:00]} 17. f4 {[%clk 0:00:00]}  Qxb2 {[%clk 0:00:00]} 18. e3 {[%clk 0:00:00]}  f5 {[%clk 0:00:00]} 19. Ng5 {[%clk 0:00:00]}  h6 {[%clk 0:00:00]} 20. Nf3 {[%clk 0:00:00]}  e4 {[%clk 0:00:00]} 21. Nh4 {[%clk 0:00:00]}  Rxd3 {[%clk 0:00:00]} 22. Qh5 {[%clk 0:00:00]}  Ne7 {[%clk 0:00:00]} 23. Rxc7 {[%clk 0:00:00]}  Ng6 {[%clk 0:00:00]} 24. Qxg6+ {[%clk 0:00:00]} 1-0


[Site "https://www.chess.com"]

[Event "Titled Tuesday Blitz August 16 Late 2022"]
[White "Martinez Reyes, Pedro Ramon"]
[Black "Yaksin, Oleg"]
[WhiteFideId "3901807"]
[BlackFideId "24105880"]
[WhiteElo "2327"]
[BlackElo "2256"]
[Result "0-1"]
[Round "11"]
[TimeControl "180+1"]
[Date "2022.08.16"]
[WhiteClock "0:01:08"]
[BlackClock "0:00:44"]

1. d4 {[%clk 0:03:00]}  f5 {[%clk 0:02:59]} 2. Bf4 {[%clk 0:03:00]}  Nf6 {[%clk 0:02:59]} 3. e3 {[%clk 0:03:00]}  g6 {[%clk 0:02:59]} 4. Nf3 {[%clk 0:03:01]}  Bg7 {[%clk 0:02:59]} 5. h3 {[%clk 0:03:01]}  d6 {[%clk 0:02:59]} 6. c4 {[%clk 0:03:01]}  O-O {[%clk 0:02:59]} 7. Nc3 {[%clk 0:03:01]}  Qe8 {[%clk 0:02:59]} 8. d5 {[%clk 0:03:01]}  Na6 {[%clk 0:02:59]} 9. Be2 {[%clk 0:03:00]}  Bd7 {[%clk 0:03:00]} 10. O-O {[%clk 0:03:00]}  c6 {[%clk 0:03:00]} 11. Bh2 {[%clk 0:02:53]}  Nc7 {[%clk 0:03:00]} 12. Qb3 {[%clk 0:02:49]}  Rb8 {[%clk 0:02:58]} 13. Nd4 {[%clk 0:02:45]}  c5 {[%clk 0:02:57]} 14. Ndb5 {[%clk 0:02:45]}  Nxb5 {[%clk 0:02:56]} 15. Nxb5 {[%clk 0:02:45]}  a6 {[%clk 0:02:51]} 16. Nc3 {[%clk 0:02:45]}  b5 {[%clk 0:02:51]} 17. Qc2 {[%clk 0:02:37]}  h6 {[%clk 0:02:38]} 18. b3 {[%clk 0:02:36]}  Ne4 {[%clk 0:02:36]} 19. Nxe4 {[%clk 0:02:34]}  Bxa1 {[%clk 0:02:35]} 20. Rxa1 {[%clk 0:02:32]}  fxe4 {[%clk 0:02:35]} 21. Qxe4 {[%clk 0:02:33]}  Qf7 {[%clk 0:02:34]} 22. Bg3 {[%clk 0:02:21]}  Kg7 {[%clk 0:02:26]} 23. Qc2 {[%clk 0:02:12]}  b4 {[%clk 0:02:21]} 24. Rf1 {[%clk 0:02:07]}  Qf6 {[%clk 0:02:18]} 25. e4 {[%clk 0:02:05]}  a5 {[%clk 0:02:11]} 26. Bd3 {[%clk 0:02:03]}  Qc3 {[%clk 0:02:07]} 27. Qe2 {[%clk 0:02:03]}  a4 {[%clk 0:02:04]} 28. Bc2 {[%clk 0:02:01]}  axb3 {[%clk 0:02:02]} 29. Bxb3 {[%clk 0:02:01]}  Ra8 {[%clk 0:01:50]} 30. e5 {[%clk 0:02:01]}  Ra6 {[%clk 0:01:38]} 31. exd6 {[%clk 0:01:56]}  exd6 {[%clk 0:01:37]} 32. Qe7+ {[%clk 0:01:43]}  Rf7 {[%clk 0:01:34]} 33. Qd8 {[%clk 0:01:43]}  Qf6 {[%clk 0:01:28]} 34. Qb8 {[%clk 0:01:41]}  h5 {[%clk 0:01:26]} 35. h4 {[%clk 0:01:40]}  Ba4 {[%clk 0:01:16]} 36. Re1 {[%clk 0:01:35]}  Bxb3 {[%clk 0:01:11]} 37. axb3 {[%clk 0:01:36]}  Re7 {[%clk 0:01:10]} 38. Rxe7+ {[%clk 0:01:23]}  Qxe7 {[%clk 0:01:11]} 39. Kh2 {[%clk 0:01:24]}  Kh7 {[%clk 0:00:57]} 40. f3 {[%clk 0:01:14]}  Ra3 {[%clk 0:00:45]} 41. Bxd6 {[%clk 0:01:12]}  Qxh4+ {[%clk 0:00:44]} 42. Kg1 {[%clk 0:01:08]}  Ra1# {[%clk 0:00:44]} 0-1


[Site "https://www.chess.com"]

[Event "Titled Tuesday Blitz August 16 Late 2022"]
[White "Melikyan, Gnel"]
[Black "Goncalves, Davi Sulzbacher"]
[WhiteFideId "54109990"]
[BlackFideId "2154510"]
[WhiteElo "1772"]
[BlackElo "2107"]
[Result "1-0"]
[Round "11"]
[TimeControl "180+1"]
[Date "2022.08.16"]
[WhiteClock "0:01:49"]
[BlackClock "0:00:23"]

1. e4 {[%clk 0:03:00]}  c5 {[%clk 0:02:59]} 2. Nf3 {[%clk 0:03:01]}  Nc6 {[%clk 0:02:59]} 3. Bb5 {[%clk 0:03:00]}  Na5 {[%clk 0:02:58]} 4. O-O {[%clk 0:02:54]}  a6 {[%clk 0:02:58]} 5. Be2 {[%clk 0:02:55]}  b5 {[%clk 0:02:58]} 6. d4 {[%clk 0:02:55]}  e6 {[%clk 0:02:56]} 7. a3 {[%clk 0:02:50]}  Bb7 {[%clk 0:02:51]} 8. dxc5 {[%clk 0:02:48]}  Bxe4 {[%clk 0:02:51]} 9. b4 {[%clk 0:02:48]}  Nc4 {[%clk 0:02:40]} 10. Nbd2 {[%clk 0:02:39]}  Bd5 {[%clk 0:02:28]} 11. Nxc4 {[%clk 0:02:37]}  bxc4 {[%clk 0:02:25]} 12. Re1 {[%clk 0:02:37]}  a5 {[%clk 0:02:22]} 13. Bf4 {[%clk 0:02:35]}  axb4 {[%clk 0:02:21]} 14. axb4 {[%clk 0:02:35]}  Nf6 {[%clk 0:02:19]} 15. Qd4 {[%clk 0:02:30]}  Be7 {[%clk 0:02:13]} 16. Ne5 {[%clk 0:02:28]}  d6 {[%clk 0:01:44]} 17. cxd6 {[%clk 0:02:23]}  Bxd6 {[%clk 0:01:40]} 18. Bxc4 {[%clk 0:02:17]}  O-O {[%clk 0:01:31]} 19. Bd3 {[%clk 0:02:07]}  Qb8 {[%clk 0:01:10]} 20. c4 {[%clk 0:01:59]}  Qxb4 {[%clk 0:01:07]} 21. Nc6 {[%clk 0:01:52]}  Bxc6 {[%clk 0:00:24]} 22. Bxd6 {[%clk 0:01:51]}  Rxa1 {[%clk 0:00:23]} 23. Bxb4 {[%clk 0:01:49]} 1-0


[Site "https://www.chess.com"]